Cogmind - Beta 15 @@@ ROGUE MODE // 2025.06.20 @ 21:34:29 Player: BlobtheGreat Result: Destroyed by B-48 Gladiator with Mace Performance ------------- Evolutions (4) 2000 Regions Visited (15) 3000 Robots Destroyed (275) 1375 Value Destroyed (13274) 13274 Prototype IDs (34) 680 Alien Tech Used (0) 0 Bonus (7506) 7506 TOTAL SCORE: 27835 Bonus ------- High Alert Combat Kills 3073 Follower Combat Kills 833 Entered Garrisons 800 Used RIF Installer 2500 Aligned with FarCom 300 Cogmind --------- Core Integrity 0/850 Matter 90/300 Energy 100/100 System Corruption 36% Temperature Cool (0) Movement Core (2350) Ox46 Location -6/Factory Parts ------- > --- POWER (1) -------- (None) > --- PROPULSION (4) --- (None) > --- UTILITY (7) ------ Cargo Storage Unit > --- WEAPON (3) ------- (None) > --- INVENTORY (30) --- High-capacity Matter Pod (0) Hardened Heavy Armor Plating Hacking Suite Relay Coupler [Swarmer] (27) Relay Coupler [Swarmer] (26) Relay Coupler [Swarmer] (33) Relay Coupler [Grunt] (34) Relay Coupler [Duelist] (33) Relay Coupler [Demolisher] (21) Relay Coupler [Specialist] (26) Relay Coupler [Hunter] (24) Relay Coupler [Hunter] (18) Relay Coupler [Behemoth] (9) Relay Coupler [Behemoth] (11) Relay Coupler [Proto] (9) Relay Coupler [Proto] (9) Relay Coupler [Proto] (9) Relay Coupler [Proto] (9) EM Pulse Cannon Heavy Flak Cannon Heavy Flak Cannon Heavy Flak Cannon Mass Driver Heavy Missile Launcher Heavy Missile Launcher Field Lobotomy Kit (1) Powered Hammer Chainsword Peak State ------------ > --- POWER ------------ Improved Deuterium Engine > --- PROPULSION ------- Improved Heavy Treads Improved Heavy Treads > --- UTILITY ---------- Cargo Storage Unit Improved Terrain Scanner Transmission Jammer Improved Light Armor Plating System Shield Relay Coupler [Grunt] > --- WEAPON ----------- Gauss Cannon Heavy Missile Launcher Remote Datajack > --- INVENTORY -------- Improved Deuterium Engine Armored Treads Advanced Treads Advanced Treads Advanced Treads Improved Heavy Treads Improved Heavy Treads High-capacity Matter Pod Improved Light Armor Plating Hacking Suite Hacking Suite Relay Coupler [NC] Relay Coupler [NC] Relay Coupler [Swarmer] Relay Coupler [Grunt] Relay Coupler [Grunt] Relay Coupler [Duelist] Relay Coupler [Sentry] Relay Coupler [Demolisher] Relay Coupler [Hunter] Relay Coupler [Behemoth] High-powered Shock Rifle Gatling Laser EM Pulse Cannon Heavy Missile Launcher Field Lobotomy Kit Powered Hammer Chainsword [Rating: 74] Favorites ----------- Power Improved Deuterium Engine Engine Improved Deuterium Engine Propulsion Light Treads Treads Light Treads Wheel Wheel Utility High-capacity Storage Unit Device Transmission Jammer Storage High-capacity Storage Unit Hackware System Shield Protection Improved Medium Armor Plating Weapon Flak Gun Energy Gun Gatling Laser Ballistic Gun Flak Gun Ballistic Cannon Gauss Cannon Launcher Heavy Missile Launcher Special Weapon Remote Datajack Slashing Weapon Chainsword Special Melee Weapon Improved Datajack Build | -11 -10 -10 -9 -9 -9 -8 -8 -8 -7 -7 -7 -7 -6 -6 -6 ------- Run | Yrd Mat Min Mat Min Exi Min Mat Gar Fac Gar Fac Gar Fac Gar Fac Slots Evolved 8 | . . . 2 . . . 2 . 2 . . . 2 . . Power . | . . . . . . . . . . . . . . . . Propulsion 2 | . . . 1 . . . 1 . . . . . . . . Utility 5 | . . . 1 . . . . . 2 . . . 2 . . Weapon 1 | . . . . . . . 1 . . . . . . . . Parts Attached 142 | 7 10 3 21 2 . . 11 11 22 2 10 6 15 20 2 Power 15 | 1 1 1 2 1 . . 1 1 2 . . . 1 4 . Engine 15 | 1 1 1 2 1 . . 1 1 2 . . . 1 4 . Core . | . . . . . . . . . . . . . . . . Reactor . | . . . . . . . . . . . . . . . . Propulsion 40 | 2 2 . 9 . . . 3 5 8 . 3 2 2 3 1 Treads 38 | 2 1 . 9 . . . 3 5 8 . 3 2 2 3 . Leg . | . . . . . . . . . . . . . . . . Wheel 2 | . 1 . . . . . . . . . . . . . 1 Hover . | . . . . . . . . . . . . . . . . Flight . | . . . . . . . . . . . . . . . . Utility 42 | 2 5 1 5 1 . . 1 . 6 1 2 4 6 7 1 Device 7 | 1 . . 1 . . . . . 1 . . 1 2 1 . Storage 6 | 1 4 . . . . . . . . . . 1 . . . Processor . | . . . . . . . . . . . . . . . . Hackware 12 | . . . . . . . 1 . 1 . 1 1 2 5 1 Protection 17 | . 1 1 4 1 . . . . 4 1 1 1 2 1 . Artifact . | . . . . . . . . . . . . . . . . Weapon 45 | 2 2 1 5 . . . 6 5 6 1 5 . 6 6 . Energy Gun 3 | . . 1 1 . . . . . . . . . 1 . . Energy Cannon . | . . . . . . . . . . . . . . . . Ballistic Gun 19 | 2 2 . 3 . . . 5 2 3 . . . 1 1 . Ballistic Cannon 14 | . . . . . . . . . 3 . 3 . 3 5 . Launcher 3 | . . . . . . . . 1 . 1 1 . . . . Special Weapon 2 | . . . . . . . . . . . 1 . 1 . . Impact Weapon . | . . . . . . . . . . . . . . . . Slashing Weapon 2 | . . . . . . . 1 1 . . . . . . . Piercing Weapon . | . . . . . . . . . . . . . . . . Special Melee Weapon 2 | . . . 1 . . . . 1 . . . . . . . Unidentified Prototypes 3 | . . . 2 . . . . . . . 1 . . . . Parts Lost 67 | . 3 3 3 . . . . 2 5 2 6 4 11 17 11 Power 8 | . 1 1 . . . . . 1 . . . . 1 3 1 Propulsion 21 | . 1 1 . . . . . 1 4 . 3 . 2 7 2 Utility 22 | . 1 . 2 . . . . . 1 1 1 2 5 4 5 Weapon 16 | . . 1 1 . . . . . . 1 2 2 3 3 3 Highest Loss Streak 11 | . 2 3 2 . . . . 1 1 1 2 3 5 5 11 To Critical Strikes 2 | . . . . . . . . . . . . . 1 . 1 Average Backups 21 | 4 9 16 19 20 20 20 19 19 19 19 19 24 27 27 28 Power 1 | . 1 2 2 1 1 1 1 . . 1 1 1 . 1 . Propulsion 2 | 2 2 2 2 3 3 3 1 2 . 1 . 4 5 1 . Utility 9 | . 3 9 8 7 7 7 6 7 8 9 10 11 12 16 18 Weapon 6 | . 1 . 5 6 7 7 8 7 7 6 5 5 6 7 8 Tool/Special . | . . . . . . . . . . . . . . . . Unused Backups 77 | . 8 . 5 5 1 . 8 8 7 . 3 4 1 5 22 Power 8 | . . . 2 2 . . 2 . 1 . . 1 . . . Propulsion 12 | . 8 . 1 . . . . 2 . . 1 . . . . Utility 38 | . . . 1 2 1 . 3 3 5 . 2 3 . 1 17 Weapon 19 | . . . 1 1 . . 3 3 1 . . . 1 4 5 Tool/Special . | . . . . . . . . . . . . . . . . Average Slot Usage (%) 92 | . 98 99 98 100 92 100 99 99 98 99 97 84 73 81 69 Engine 8 | . 14 13 10 11 11 11 8 9 7 7 7 7 4 5 5 Treads 25 | . 24 13 32 33 33 33 35 35 28 30 29 21 12 16 5 Device 4 | . 2 6 9 10 11 11 . . 6 7 6 4 4 . . Storage 8 | . 18 15 11 11 11 11 9 9 7 7 7 7 6 8 6 Hackware 13 | . . . . . . . 8 9 14 15 15 14 20 28 31 Protection 6 | . 5 6 11 11 11 11 9 9 6 7 6 5 3 . . Ballistic Gun 12 | . 28 21 19 22 14 22 26 24 16 14 9 . 1 1 . Ballistic Cannon 6 | . . . . . . . . . 3 3 9 18 8 15 18 Slashing Weapon 1 | . . . . . . . . 1 2 2 1 1 . . . Peak Build Rating 74 | 7 11 11 17 21 21 21 29 31 46 47 48 68 74 72 56 Average Rating 40 | 5 9 10 15 19 19 21 28 29 41 46 45 58 68 58 52 On Entrance 31 | . 7 11 11 17 21 21 21 29 31 46 46 48 68 67 56 Naked Turns . | . . . . . . . . . . . . . . . . Heaviest Build 205 | 14 55 55 57 58 58 58 61 63 73 74 77 205 172 179 175 Greatest Support 150 | 40 40 20 60 60 60 60 86 86 92 92 92 150 150 150 30 Greatest Overweight (x) 10 | . 5 5 2 . . . 1 . 1 . 1 2 2 5 10 Average Overweight (x) . | . 1 4 . . . . . . . . . . 1 2 5 Largest Inventory Capacity 30 | 8 20 20 20 20 20 20 20 20 20 20 20 30 30 30 30 Average Capacity 22 | 7 12 20 20 20 20 20 20 20 20 20 20 26 30 30 30 Most Carried 30 | 7 15 20 20 20 20 20 20 20 20 20 20 30 30 30 30 Average Carried 21 | 5 9 17 19 19 19 20 19 19 19 19 19 25 29 29 29 Final Capacity 30 | 8 20 20 20 20 20 20 20 20 20 20 20 30 30 30 30 Final Carried 30 | 7 15 20 20 20 20 20 20 20 20 20 19 30 29 30 29 Class Distribution -------------------- 22% | Bothacker-Skirmisher 14% | Scavenger-Mutant 13% | Bothacker-Mutant 11% | Botlord-Tank 10% | Botlord-Skirmisher 10% | Mutant 9% | Scavenger-Skirmisher 5% | Botlord-Mutant Dominant Class ---------------- Mutant | -10/Materials Mutant | -10/Mines Scavenger-Mutant | -9/Materials Scavenger-Mutant | -9/Mines Scavenger-Mutant | -9/Exiles Scavenger-Mutant | -8/Mines Scavenger-Skirmisher | -8/Materials Scavenger-Skirmisher | -8/Garrison Bothacker-Skirmisher | -7/Factory Bothacker-Skirmisher | -7/Garrison Bothacker-Skirmisher | -7/Factory Botlord-Tank | -7/Garrison Botlord-Tank | -6/Factory Botlord-Skirmisher | -6/Garrison Botlord-Skirmisher | -6/Factory Resources | -11 -10 -10 -9 -9 -9 -8 -8 -8 -7 -7 -7 -7 -6 -6 -6 ----------- Run | Yrd Mat Min Mat Min Exi Min Mat Gar Fac Gar Fac Gar Fac Gar Fac Matter Collected 10690 | 250 630 450 834 291 . 64 584 602 1685 334 1063 1904 647 1352 . Remotely . | . . . . . . . . . . . . . . . . Salvage Created 9760 | 82 783 273 1182 250 . . 745 551 1891 334 583 1299 799 988 . Parts 542 | 7 67 14 83 16 . . 51 29 90 19 25 46 41 54 . Haulers Intercepted 9 | . 2 . 2 . . . 2 . 3 . . . . . . Recyclers Shooed 8 | . . . 1 . . . 1 . 1 . 1 . 4 . . Parts Field Recycled . | . . . . . . . . . . . . . . . . Retrieved Matter . | . . . . . . . . . . . . . . . . Parts Self-Destructed . | . . . . . . . . . . . . . . . . Prevented . | . . . . . . . . . . . . . . . . Kills | -11 -10 -10 -9 -9 -9 -8 -8 -8 -7 -7 -7 -7 -6 -6 -6 ------- Run | Yrd Mat Min Mat Min Exi Min Mat Gar Fac Gar Fac Gar Fac Gar Fac Combat Hostiles Destroyed 218 | . 20 4 22 6 . . 10 16 25 12 12 30 24 37 . Melee 2 | . . . . . . . . . . . . . . 2 . Guns 114 | . 20 4 22 6 . . 10 12 21 5 1 . 4 9 . Cannons 79 | . . . . . . . . . 4 4 8 30 11 22 . AOE 23 | . . . . . . . . 4 . 3 3 . 9 4 . Classes Destroyed 18 | 2 6 2 3 . . . 2 1 . . . . 2 . . Worker 6 | . 1 . . . . . 1 . 3 . 1 . . . . Builder 2 | . . . . . . . 1 . 1 . . . . . . Tunneler 2 | 1 . 1 . . . . . . . . . . . . . Hauler 9 | . 2 . 2 . . . 2 . 3 . . . . . . Recycler 20 | 1 . 2 . . . . 3 . 10 . 4 . . . . Operator 6 | . 3 . 2 . . . . . 1 . . . . . . Watcher 13 | . 3 . 4 . . . 1 . 4 . 1 . . . . Swarmer 40 | . 9 . 2 . . . 3 4 . 3 3 2 . 14 . Saboteur 2 | . . . . . . . . . . . . . 2 . . Grunt 93 | . 11 2 10 5 . . 3 7 15 6 5 15 10 4 . Brawler 11 | . . . 2 . . . . . . . . 4 3 2 . Duelist 9 | . . . 1 1 . . . . . . . 3 3 1 . Sentry 30 | . . . 7 . . . 3 2 2 2 1 3 1 9 . Demolisher 2 | . . 1 . . . . . . . . . 1 . . . Specialist 1 | . . . . . . . . . . . . . 1 . . Hunter 5 | . . . . . . . 1 . 1 . 1 . 2 . . Programmer 24 | . . . . . . . . 3 7 1 2 2 2 7 . Assembled 1 | . . 1 . . . . . . . . . . . . . Best Kill Streak 8 | 1 3 2 3 2 . . 4 4 4 6 4 3 5 8 . Combat Bots Only 8 | . 3 2 3 2 . . 3 4 3 6 3 3 5 8 . Max Kills in Single Turn 3 | 1 1 1 2 1 . . 1 3 2 2 3 1 2 2 . Gunslinging 1 | . . . 1 . . . . . . . . . . . . Exploded 3 | . . . . . . . . 3 . 2 3 . 2 2 . Melee 1 | . . . . . . . . . . . . . . 1 . Uniques/NPCs Destroyed . | . . . . . . . . . . . . . . . . Combat | -11 -10 -10 -9 -9 -9 -8 -8 -8 -7 -7 -7 -7 -6 -6 -6 -------- Run | Yrd Mat Min Mat Min Exi Min Mat Gar Fac Gar Fac Gar Fac Gar Fac Hostile Shots Fired 1548 | . 86 11 90 22 . . 50 83 171 105 91 176 164 441 58 Missed 506 | . 18 1 31 3 . . 13 24 52 43 33 65 45 165 13 Hits 1042 | . 68 10 59 19 . . 37 59 119 62 58 111 119 276 45 Melee 41 | . . . 5 . . . . . . . . 8 7 5 16 Projectile 1001 | . 68 10 54 19 . . 37 59 119 62 58 103 112 271 29 AOE 13 | . . 7 . . . . . . . . . 5 . 1 . Critical Strikes 38 | . 2 . 5 . . . 4 2 3 . 1 5 2 8 6 Part Disruptions 3 | . . . . . . . . 1 . . . . 1 1 . Damage Taken 15381 | . 712 314 861 264 . . 537 1008 1671 732 993 1289 2779 3082 1139 Core 1999 | . 77 102 111 66 . . 70 158 164 76 125 178 341 212 319 Absorbed by Shields 473 | . . . . . . . . . . 3 . 213 . 257 . Redirected to Shielding 4 | . . 4 . . . . . . . . . . . . . Regen/Repaired (Parts) 129 | . . . . . . . . . . . 129 . . . . Core Remaining (%) 52 | 100 . 28 . . . 55 . 58 . . . 22 . . . Volleys Fired 736 | 7 76 22 86 21 . . 54 40 110 28 38 104 56 91 3 Largest 3 | 2 2 2 2 2 . . 3 3 3 3 3 3 3 3 1 Hottest 160 | 40 46 63 63 46 . . 71 71 96 96 105 117 160 138 5 Shots Fired 1670 | 14 152 30 172 36 . . 161 109 289 66 94 246 84 214 3 Gun 1055 | 14 152 30 172 36 . . 161 103 227 40 33 . 22 65 . Cannon 554 | . . . . . . . . . 62 20 57 229 48 138 . Launcher 28 | . . . . . . . . 6 . 6 1 . 10 5 . Special 33 | . . . . . . . . . . . 3 17 4 6 3 Kinetic 1584 | 14 152 27 163 36 . . 161 103 289 60 90 229 57 203 . Thermal 13 | . . . . . . . . . . . . . 13 . . Explosive 28 | . . . . . . . . 6 . 6 1 . 10 5 . Electromagnetic 12 | . . 3 9 . . . . . . . . . . . . Robot Hit Streak 17 | 3 7 5 15 5 . . 8 10 8 7 12 17 16 12 3 Robot Miss Streak 12 | 3 5 2 3 2 . . 5 4 11 5 12 5 6 8 1 Penetration Max 1 | . . . . . . . . . . . . 1 . . . Secondary Targets 4 | . 2 . 1 . . . . 1 . . . . . . . Max Gunslinging Chain 1 | . 1 . 1 . . . . 1 . . . . . . . Shots Hit Robots 1082 | 7 90 21 118 26 . . 95 69 203 46 73 156 64 112 2 Core Hits 650 | 4 37 9 45 10 . 1 35 35 167 56 38 59 76 78 . Critical Kills 2 | . . . . . . . 1 . . . . . . 1 . Critical Parts Destroyed 4 | . . 1 2 . . . . . . . . . . 1 . Critical Strikes 37 | . . 1 2 . . . 1 . 3 1 5 17 3 4 . Destroy 6 | . . 1 2 . . . 1 . . . . . . 2 . Blast 31 | . . . . . . . . . 3 1 5 17 3 2 . Melee Attacks 62 | . . . . . . . 2 13 15 7 8 15 2 . . Impact . | . . . . . . . . . . . . . . . . Slashing 55 | . . . . . . . 2 6 15 7 8 15 2 . . Piercing . | . . . . . . . . . . . . . . . . Sneak Attacks 15 | . . . . . . . . 7 3 . 5 . . . . Combat Hostiles . | . . . . . . . . . . . . . . . . Follow-up Attacks . | . . . . . . . . . . . . . . . . Damage Inflicted 25626 | 62 1222 312 1891 436 . 1 1452 1382 4097 1242 2044 4597 2883 3967 38 Guns 11633 | 62 1211 308 1870 411 . . 1434 999 2989 647 536 . 451 715 . Cannons 8876 | . . . . . . . . . 680 245 912 3543 951 2545 . Explosions 3227 | . . . . . . . . 383 193 350 193 . 1416 692 . Melee 1663 | . . . . . . . . . 231 . 378 1054 . . . Ramming 227 | . 11 4 21 25 . 1 18 . 4 . 25 . 65 15 38 Kinetic 20041 | 62 1211 266 1759 411 . . 1434 999 3669 892 1448 3543 1087 3260 . Thermal 315 | . . . . . . . . . . . . . 315 . . Explosive 3056 | . . . . . . . . 383 73 350 193 . 1365 692 . Electromagnetic 324 | . . 42 111 . . . . . 120 . . . 51 . . Impact . | . . . . . . . . . . . . . . . . Slashing 1663 | . . . . . . . . . 231 . 378 1054 . . . Piercing . | . . . . . . . . . . . . . . . . Highest Corruption 36 | . . . 9 9 9 9 . 8 4 4 7 11 7 15 36 Average Corruption 7 | . . . 5 9 9 9 . 7 2 4 4 10 6 12 16 Corruption Purged . | . . . . . . . . . . . . . . . . Corruption Blocked . | . . . . . . . . . . . . . . . . Effects 591 | . . . 29 53 14 13 . 9 61 31 64 116 37 140 24 Message Errors 150 | . . . 8 13 4 6 . 3 15 4 13 27 7 42 8 Matter Fused 148 | . . . 10 14 3 2 . 3 12 6 23 31 5 35 4 Heat Flow Errors 69 | . . . 5 6 1 2 . 1 9 2 7 17 4 13 2 Energy Discharges 75 | . . . 4 8 1 . . . 11 7 8 10 7 14 5 Parts Rejected 1 | . . . . . . . . . . . . . 1 . . Parts Fused 4 | . . . . 1 . . . . . 1 . . . 2 . Data Loss (minor) 57 | . . . . 4 3 1 . 1 5 5 6 14 4 13 1 Data Loss (major) 30 | . . . 1 2 . 2 . . 1 . 1 6 6 9 2 Misfires 30 | . . . . 2 . . . 1 6 2 6 7 2 4 . Alerts 17 | . . . 1 2 2 . . . . 1 . 3 1 5 2 Misdirections 1 | . . . . . . . . . . . . 1 . . . Weapon Failures 9 | . . . . 1 . . . . 2 3 . . . 3 . Overload Shots . | . . . . . . . . . . . . . . . . Overflow Damage 394 | . . . . . . . . . 66 . 168 65 9 86 . Projectiles 183 | . . . . . . . . . 3 . 34 65 7 74 . Explosions 35 | . . . . . . . . . . . 21 . 2 12 . Melee 176 | . . . . . . . . . 63 . 113 . . . . Knockbacks 74 | . . . . 1 . . . . 4 . 10 30 11 18 . Impact 2 | . . . . 1 . . . . . . 1 . . . . Kinetic 67 | . . . . . . . . . 4 . 9 28 9 17 . Secondary 5 | . . . . . . . . . . . . 2 2 1 . Self-Inflicted Damage 409 | . 5 2 . . . . . 30 22 56 52 . 142 83 17 Shots 14 | . . . . . . . . 1 1 2 1 . 6 3 . Rammed 39 | . 2 1 2 3 . 1 2 . 1 . 3 . 13 2 9 Targets Rammed 42 | . 2 1 2 3 . 1 3 . 1 . 3 . 13 4 9 Kicked . | . . . . . . . . . . . . . . . . Crushed 3 | . . . . . . . 1 . . . . . . 2 . Highest Temperature 354 | . 55 42 207 245 163 177 79 145 233 258 238 273 354 247 108 Average Temperature 60 | . 13 10 33 74 87 78 18 45 52 64 81 93 168 57 60 Received Heat Transfer 3716 | . 246 36 306 153 . . 252 243 483 234 204 371 504 402 282 Effects 6 | . . . . 2 . . . . . . . . 4 . . Shutdowns 2 | . . . . . . . . . . . . . 2 . . Interference 4 | . . . . 2 . . . . . . . . 2 . . Siege Activations . | . . . . . . . . . . . . . . . . Martial Activations . | . . . . . . . . . . . . . . . . Shielding Activations . | . . . . . . . . . . . . . . . . Robots Disrupted . | . . . . . . . . . . . . . . . . Combat Hostiles . | . . . . . . . . . . . . . . . . Robots Corrupted . | . . . . . . . . . . . . . . . . Combat Hostiles . | . . . . . . . . . . . . . . . . Parts Fried 1 | . . . . . . . . . . . . . 1 . . Impact Corruptions . | . . . . . . . . . . . . . . . . Robots Melted . | . . . . . . . . . . . . . . . . Combat Hostiles . | . . . . . . . . . . . . . . . . Parts Melted . | . . . . . . . . . . . . . . . . Heat Transferred 700 | . . . . . . . . . . . . . 700 . . Parts Sabotaged 2 | . . . . . . . . . . . . . 2 . . Parts Stolen . | . . . . . . . . . . . . . . . . Parts Stripped . | . . . . . . . . . . . . . . . . Power Chain Reactions . | . . . . . . . . . . . . . . . . Alert | -11 -10 -10 -9 -9 -9 -8 -8 -8 -7 -7 -7 -7 -6 -6 -6 ------- Run | Yrd Mat Min Mat Min Exi Min Mat Gar Fac Gar Fac Gar Fac Gar Fac Maximum Alert Level 5 | . . . 1 . . . . 3 2 3 1 5 4 5 5 Low Security (%) 40 | 100 100 100 69 100 . 100 100 43 39 . 40 . . . . Level 1 22 | . . . 30 . . . . 15 58 26 59 25 . . . Level 2 8 | . . . . . . . . 28 1 69 . 28 . . . Level 3 8 | . . . . . . . . 12 . 3 . 13 78 7 . Level 4 7 | . . . . . . . . . . . . 17 21 25 38 Level 5 12 | . . . . . . . . . . . . 13 . 67 61 High Security . | . . . . . . . . . . . . . . . . Max Security . | . . . . . . . . . . . . . . . . Peak Influence 3356 | 5 191 42 308 92 . . 94 837 438 705 369 1966 1460 3356 1761 Initial 1761 | . . . . 49 . . . 35 438 263 369 210 1031 1003 1761 Average 606 | . 104 3 123 19 . . 21 336 219 453 218 837 1006 2127 1621 Influence Increases 11114 | 10 628 85 771 215 . . 352 942 1195 462 686 2056 1146 2563 3 Destroy 0b10 Robot/C 4880 | . 400 60 440 120 . . 200 440 500 240 320 720 700 740 . Destroy 0b10 Robot/NC 355 | 10 45 15 45 . . . 40 . 110 . 40 20 30 . . Destroy Leader 798 | . 110 10 142 20 . . 56 20 164 20 72 40 114 30 . Allied During Kill 143 | . . . . . . . . 10 . . 5 50 76 2 . Trap Triggered on 0b10 10 | . . . 10 . . . . . . . . . . . . Successful Hack 100 | . 25 . 40 . . . 4 12 4 . 12 . . . 3 Disable Machine 495 | . 30 . 15 . . . 15 . 210 . 120 . 90 15 . Anti-Garrison Action 3400 | . . . . . . . . 350 150 100 . 1200 . 1600 . Destroy Structure 408 | . 3 . 4 . . . 7 65 27 72 57 11 91 71 . Partial Spotted 45 | . . . 15 . . . . . . . 15 . 15 . . Lose Combat Pursuer 480 | . 15 . 60 75 . . 30 45 30 30 45 15 30 105 . Influence Decreases 9754 | 10 628 85 643 287 56 . 298 159 1655 134 1090 391 1678 641 1999 Entered New Map 4055 | . . . . 79 56 . . 19 399 114 336 91 935 431 1595 Time Decay 3624 | 10 478 80 463 208 . . 298 . 606 . 674 . 553 . 254 Lost Part 645 | . 30 5 30 . . . . 20 50 20 60 40 110 170 110 Lost Ally 560 | . . . . . . . . 120 . . 20 260 80 40 40 Purge Threat 870 | . 120 . 150 . . . . . 600 . . . . . . Squads Dispatched 43 | . 6 . 2 1 . . 1 . 14 . 7 . 9 . 3 Investigation 6 | . 3 . . 1 . . . . . . 1 . . . 1 Extermination 13 | . . . . . . . . . 7 . 4 . 2 . . Reinforcement 14 | . 3 . 2 . . . . . 5 . 1 . 3 . . Assault 7 | . . . . . . . . . 2 . . . 3 . 2 Garrison 3 | . . . . . . . 1 . . . 1 . 1 . . Intercept . | . . . . . . . . . . . . . . . . Searches Triggered . | . . . . . . . . . . . . . . . . Construction Impeded 1 | . . . . . . . . . . . . . 1 . . Haulers Reinforced 3 | . . . . . . . . . 3 . . . . . . Active Scanning Responses . | . . . . . . . . . . . . . . . . Cargo Convoy Interrupts . | . . . . . . . . . . . . . . . . Stealth | -11 -10 -10 -9 -9 -9 -8 -8 -8 -7 -7 -7 -7 -6 -6 -6 --------- Run | Yrd Mat Min Mat Min Exi Min Mat Gar Fac Gar Fac Gar Fac Gar Fac Distress Signals 16 | . 2 1 3 . . . 6 . 1 . 2 . 1 . . Communications Jammed 7 | . . . . . . . . . 3 . 4 . . . . Distress Signals 7 | . . . . . . . . . 3 . 4 . . . . Times Spotted 344 | . 33 4 36 10 . . 22 24 41 12 32 34 46 44 6 Peak Tracking Total 7 | . 3 2 5 3 . . 4 4 3 3 4 5 7 6 4 Tactical Retreats 24 | . 1 . 4 3 . . 2 2 2 1 2 1 2 4 . Traps | -11 -10 -10 -9 -9 -9 -8 -8 -8 -7 -7 -7 -7 -6 -6 -6 ------- Run | Yrd Mat Min Mat Min Exi Min Mat Gar Fac Gar Fac Gar Fac Gar Fac Traps Triggered 22 | . 2 . 1 . . . 1 1 2 1 2 7 . 5 . Indirectly . | . . . . . . . . . . . . . . . . Trap Hack Attempts 32 | . . . 32 . . . . . . . . . . . . Triggered . | . . . . . . . . . . . . . . . . Disarmed 6 | . . . . . . . . . 6 . . . . . . Reprogrammed 4 | . . . 4 . . . . . . . . . . . . Reused 1 | . . . 1 . . . . . . . . . . . . Traps Extracted . | . . . . . . . . . . . . . . . . Installed . | . . . . . . . . . . . . . . . . Triggered 1 | . . . 1 . . . . . . . . . . . . Most Traps Carried 3 | . . 3 3 . . . . . . . . . . . . Machines | -11 -10 -10 -9 -9 -9 -8 -8 -8 -7 -7 -7 -7 -6 -6 -6 ---------- Run | Yrd Mat Min Mat Min Exi Min Mat Gar Fac Gar Fac Gar Fac Gar Fac Machines Disabled 50 | . 2 . 1 . . . 1 3 15 2 8 4 6 8 . Max in Single Turn 6 | . 1 . 1 . . . 1 1 6 1 2 1 5 1 . Garrison Access 4 | . . . . . . . . . 3 . . . 1 . . Garrison Relay 16 | . . . . . . . . 3 . 2 . 4 . 7 . Machines Repaired . | . . . . . . . . . . . . . . . . Machines Dismantled . | . . . . . . . . . . . . . . . . Machines Sabotaged . | . . . . . . . . . . . . . . . . Overloaded Fab Kills . | . . . . . . . . . . . . . . . . Hacking | -11 -10 -10 -9 -9 -9 -8 -8 -8 -7 -7 -7 -7 -6 -6 -6 --------- Run | Yrd Mat Min Mat Min Exi Min Mat Gar Fac Gar Fac Gar Fac Gar Fac Machines Accessed 54 | . 7 . 9 1 1 . 6 1 11 2 9 1 4 . 2 Terminals 35 | . 6 . 9 . . . 5 1 6 2 4 1 1 . . Fabricators 2 | . . . . . . . . . . . 1 . . . 1 Repair Stations 1 | . . . . . . . . . . . 1 . . . . Recycling Units 5 | . 1 . . . . . . . 1 . 1 . 1 . 1 Scanalyzers 3 | . . . . . . . . . 1 . 1 . 1 . . Garrison Access 6 | . . . . . . . 1 . 3 . 1 . 1 . . Total Hacks 130 | . 23 . 30 1 1 . 17 2 26 3 17 1 6 . 3 Successful 68 | . 12 . 14 1 1 . 4 1 14 2 14 . 3 . 2 Failed 62 | . 11 . 16 . . . 13 1 12 1 3 1 3 . 1 Catastrophic 14 | . 1 . 3 . . . 4 . 2 . 2 1 1 . . Database Lockouts . | . . . . . . . . . . . . . . . . Manual 55 | . 10 . 16 . 1 . 13 . 13 . 1 . 1 . . Terminals 98 | . 21 . 30 . . . 15 2 20 3 5 1 1 . . Fabricators 4 | . . . . . . . . . . . 2 . . . 2 Repair Stations 2 | . . . . . . . . . . . 2 . . . . Recycling Units 10 | . 2 . . . . . . . 1 . 4 . 2 . 1 Scanalyzers 6 | . . . . . . . . . 2 . 2 . 2 . . Garrison Access 8 | . . . . . . . 2 . 3 . 2 . 1 . . Terminal Hacks 36 | . 9 . 12 1 1 . 2 1 6 2 2 . . . . Record 1 | . . . 1 . . . . . . . . . . . . Robot Analysis 4 | . 4 . . . . . . . . . . . . . . Prototype ID Bank 4 | . 1 . 1 . . . 1 . . . 1 . . . . Open Door 1 | . . . . 1 . . . . . . . . . . . Emergency Access Points 2 | . . . . . . . . 1 . 1 . . . . . Unreport Threat 7 | . 2 . 1 . . . . . 4 . . . . . . Locate Traps 3 | . 1 . 2 . . . . . . . . . . . . Disarm Traps 1 | . . . . . . . . . 1 . . . . . . Reprogram Traps 2 | . . . 2 . . . . . . . . . . . . Dispatch Records 2 | . . . 1 . . . . . 1 . . . . . . Maintenance Status 1 | . 1 . . . . . . . . . . . . . . Recall Reinforcements 1 | . . . 1 . . . . . . . . . . . . Hauler Manifests 3 | . . . 1 . . . 1 . . . 1 . . . . Registered Prototypes 1 | . . . 1 . . . . . . . . . . . . Zone Layout 1 | . . . 1 . . . . . . . . . . . . Garrison Registry 1 | . . . . . . . . . . 1 . . . . . Proto ID Catalog 1 | . . . . . 1 . . . . . . . . . . Fabricator Hacks 4 | . . . . . . . . . . . 2 . . . 2 Load Schematic 2 | . . . . . . . . . . . 1 . . . 1 Build 2 | . . . . . . . . . . . 1 . . . 1 Repair Station Hacks 2 | . . . . . . . . . . . 2 . . . . Scan Component 1 | . . . . . . . . . . . 1 . . . . Repair 1 | . . . . . . . . . . . 1 . . . . Recycling Unit Hacks 7 | . 1 . . . . . . . 1 . 4 . 1 . . Process 2 | . . . . . . . . . . . 2 . . . . Retrieve Matter 2 | . . . . . . . . . . . 2 . . . . Retrieve Components 3 | . 1 . . . . . . . 1 . . . 1 . . Scanalyzer 5 | . . . . . . . . . 2 . 2 . 1 . . Insert Component 3 | . . . . . . . . . 1 . 1 . 1 . . Analyze 2 | . . . . . . . . . 1 . 1 . . . . Garrison Access Hacks 7 | . . . . . . . 1 . 3 . 2 . 1 . . Unlock Access 4 | . . . . . . . 1 . 1 . 1 . 1 . . Seal Access 2 | . . . . . . . . . 2 . . . . . . Coupler Status 1 | . . . . . . . . . . . 1 . . . . Unauthorized Hacks 7 | . 2 . 2 . . . 1 . 2 . . . . . . Terminals 7 | . 2 . 2 . . . 1 . 2 . . . . . . Assimilate 1 | . 1 . . . . . . . . . . . . . . Botnet 6 | . 1 . 2 . . . 1 . 2 . . . . . . Fabricators . | . . . . . . . . . . . . . . . . Repair Stations . | . . . . . . . . . . . . . . . . Recycling Units . | . . . . . . . . . . . . . . . . Scanalyzers . | . . . . . . . . . . . . . . . . Garrison Access . | . . . . . . . . . . . . . . . . Data Cores Recovered 2 | . . . 1 . . . . . 1 . . . . . . Used . | . . . . . . . . . . . . . . . . Hacking Detections 42 | . 6 . 8 . . . 6 1 7 1 7 1 3 . 2 Full Trace Events 3 | . 1 . . . . . . . . . 1 . . . 1 Feedback Events . | . . . . . . . . . . . . . . . . Feedback Blocked . | . . . . . . . . . . . . . . . . Robot Schematics Acquired . | . . . . . . . . . . . . . . . . Robots Built . | . . . . . . . . . . . . . . . . Authchips . | . . . . . . . . . . . . . . . . Time . | . . . . . . . . . . . . . . . . Total Robot Build Rating . | . . . . . . . . . . . . . . . . Part Schematics Acquired 2 | . . . . . . . . . 1 . 1 . . . . Parts Built 4 | . . . . . . . . . . . 2 . . . 2 Authchips . | . . . . . . . . . . . . . . . . Time 146 | . . . . . . . . . . . 73 . . . 73 Total Part Build Rating 12 | . . . . . . . . . . . 6 . . . 6 Parts Repaired 1 | . . . . . . . . . . . 1 . . . . Time 32 | . . . . . . . . . . . 32 . . . . Parts Recycled . | . . . . . . . . . . . . . . . . Recycled Matter 8 | . . . . . . . . . . . 8 . . . . Retrieved Matter 8 | . . . . . . . . . . . 8 . . . . Retrieved Components 11 | . . . . . . . . . 1 . . . 10 . . Parts Scanalyzed 3 | . . . . . . . . . 1 . 1 . 1 . . Part Schematics Acquired 2 | . . . . . . . . . 1 . 1 . . . . Parts Damaged 1 | . . . . . . . . . . . . . 1 . . Bothacking | -11 -10 -10 -9 -9 -9 -8 -8 -8 -7 -7 -7 -7 -6 -6 -6 ------------ Run | Yrd Mat Min Mat Min Exi Min Mat Gar Fac Gar Fac Gar Fac Gar Fac Used RIF Installer 5 | . . . . . . . . 1 . 2 . 1 . 1 . Signal Jammer 1 | . . . . . . . . . . . . . . 1 . Zone Cloak 1 | . . . . . . . . . . . . 1 . . . Structural Interface 1 | . . . . . . . . . . 1 . . . . . Autooverride 1 | . . . . . . . . . . 1 . . . . . Robots Hacked 11 | . . . . . . . . . . . 2 4 1 2 2 Non-combat 1 | . . . . . . . . . . . 1 . . . . Combat 10 | . . . . . . . . . . . 1 4 1 2 2 Autooverrided 4 | . . . . . . . . . . . . 3 1 . . Robot Hacks Applied 7 | . . . . . . . . . . . 2 1 . 2 2 parse_system 1 | . . . . . . . . . . . 1 . . . . formatsys_high 6 | . . . . . . . . . . . 1 1 . 2 2 Relay Couplers Released 67 | . . . . . . . . 10 3 7 . 15 3 29 . Machine Destruction 67 | . . . . . . . . 10 3 7 . 15 3 29 . Attached 9 | . . . . . . . . . . . 1 1 1 5 1 Fabnet Peak Effective % . | . . . . . . . . . . . . . . . . Robots Rewired 15 | . . . . . . . . 6 . . . 9 . . . Allies Hacked . | . . . . . . . . . . . . . . . . Hacks Repelled . | . . . . . . . . . . . . . . . . Allies | -11 -10 -10 -9 -9 -9 -8 -8 -8 -7 -7 -7 -7 -6 -6 -6 -------- Run | Yrd Mat Min Mat Min Exi Min Mat Gar Fac Gar Fac Gar Fac Gar Fac Total Allies 32 | . . 1 . . . . . 6 . . 1 15 5 2 2 Largest Group 6 | . . 1 1 . . . . 6 . . 1 6 4 2 1 Highest-Rated Group 311 | . . 31 31 . . . . 87 . . 21 219 311 76 47 Highest-Rated Ally 90 | . . 31 31 . . . . 15 . . 21 80 90 47 47 Total Orders 1 | . . . . . . . . . . . . 1 . . . STAY 1 | . . . . . . . . . . . . 1 . . . Ally Attacks 158 | . . . 3 . . . . 16 . . 13 60 53 10 3 Total Damage 3571 | . . . 43 . . . . 328 . . 377 909 1635 202 77 Kills 37 | . . . 1 . . . . 6 . . 6 6 18 . . Allies Corrupted . | . . . . . . . . . . . . . . . . Allies Melted 1 | . . . . . . . . 1 . . . . . . . Field Lobotomies 4 | . . . . . . . . . . . . . 4 . . Intel | -11 -10 -10 -9 -9 -9 -8 -8 -8 -7 -7 -7 -7 -6 -6 -6 ------- Run | Yrd Mat Min Mat Min Exi Min Mat Gar Fac Gar Fac Gar Fac Gar Fac Active Infowar (turns) 14702 | 99 290 466 1387 1342 361 279 28 . 4396 991 2611 2024 428 . . Terrain 412 | . . . . . . . . . . . . . 412 . . Seismic 4252 | 99 290 466 1387 1342 361 279 28 . . . . . . . . Jamming 10426 | . . . . . . . . . 4396 991 2611 2024 404 . . Robot Analysis Total 4 | . 4 . . . . . . . . . . . . . . Derelict Logs Recovered 3 | . . 2 . 1 . . . . . . . . . . . Drone Launches . | . . . . . . . . . . . . . . . . Drone Recoveries . | . . . . . . . . . . . . . . . . Exploration | -11 -10 -10 -9 -9 -9 -8 -8 -8 -7 -7 -7 -7 -6 -6 -6 ------------- Run | Yrd Mat Min Mat Min Exi Min Mat Gar Fac Gar Fac Gar Fac Gar Fac Turns Passed 27153 | 173 1556 976 1657 1419 361 279 1548 2020 4404 991 2621 3288 1606 3703 551 Spaces Moved 12369 | 89 775 582 747 831 223 173 720 1100 2361 529 1283 1395 565 903 93 Core 5 | 5 . . . . . . . . . . . . . . . Treads 11557 | 84 557 1 747 831 223 173 720 1100 2361 529 1283 1395 565 903 85 Legs . | . . . . . . . . . . . . . . . . Wheels 807 | . 218 581 . . . . . . . . . . . . 8 Hover . | . . . . . . . . . . . . . . . . Flight . | . . . . . . . . . . . . . . . . Fastest Speed 50 | 50 155 140 160 160 160 160 160 160 160 160 155 155 240 230 235 Average Speed 187 | 153 163 155 161 160 160 160 160 160 163 160 164 200 242 370 533 Slowest Speed 560 | 160 240 320 320 160 160 160 240 160 240 160 243 320 320 560 560 Overloaded Moves . | . . . . . . . . . . . . . . . . Propulsion Burnouts . | . . . . . . . . . . . . . . . . Robots Hopped . | . . . . . . . . . . . . . . . . Potential Cave-ins 1 | . . . . . . . . . . . . . . 1 . Cave-ins Triggered . | . . . . . . . . . . . . . . . . Exploration Rate (%) 54 | 5 96 90 58 94 61 33 43 70 47 54 26 92 15 82 4 Regions Visited 15 Branch Regions 4 Pre-discovered Areas 1 | . . 1 . . . . . . . . . . . . . Known Exits Taken 5 | . . 1 . . . . 1 . 1 . 1 . 1 . . Unknown Exits Taken 6 | 1 1 . 1 1 1 1 . . . . . . . . . Scrap Searched 8 | . . 3 . 4 . 1 . . . . . . . . . Spaces Dug 23 | . . . . . . . 2 . 13 . 6 . 2 . . Terrain Destroyed 345 | . . . . . . . 2 40 23 78 66 6 66 64 . Melee 17 | . . . . . . . 2 . 10 . 3 . 2 . . Projectile 70 | . . . . . . . . 1 13 . 14 6 4 32 . AOE 258 | . . . . . . . . 39 . 78 49 . 60 32 . Terrain Rammed . | . . . . . . . . . . . . . . . . Walls Destroyed . | . . . . . . . . . . . . . . . . Machines Disabled . | . . . . . . . . . . . . . . . . Actions | -11 -10 -10 -9 -9 -9 -8 -8 -8 -7 -7 -7 -7 -6 -6 -6 --------- Run | Yrd Mat Min Mat Min Exi Min Mat Gar Fac Gar Fac Gar Fac Gar Fac Total 14856 | 109 941 629 1052 892 228 176 999 1286 2696 605 1704 1673 676 1082 108 Wait 1076 | . 52 12 117 21 . 1 175 86 130 25 332 100 6 19 . Move 12357 | 88 774 581 746 830 222 172 719 1099 2361 528 1283 1394 565 902 93 Hop . | . . . . . . . . . . . . . . . . Pick Up 162 | 7 13 8 17 6 1 1 15 10 19 4 10 16 11 24 . Fast Attach 42 | 7 4 . 6 . 2 . 2 1 2 . 5 4 5 3 1 Attach 61 | . 2 3 5 . . . 3 1 7 3 6 4 10 17 . Detach 10 | . 3 . . . . . . . 1 . 1 5 . . . Swap 116 | . 5 2 15 3 . . 8 15 24 8 10 10 7 7 2 Drop 135 | . 10 . 26 8 3 1 16 15 26 2 8 10 1 9 . Fire 736 | 7 76 22 86 21 . . 54 40 110 28 38 104 56 91 3 Melee 62 | . . . . . . . 2 13 15 7 8 15 2 . . Ram 11 | . 1 1 . . . . . . . . . . . . 9 Kick . | . . . . . . . . . . . . . . . . Crush 31 | . 1 . 2 3 . 1 3 . 1 . 3 . 13 4 . Escape Stasis 12 | . . . . . . . . . . . . 6 . 6 . Rewire 13 | . . . . . . . 2 6 . . . 5 . . . Trap 32 | . . . 32 . . . . . . . . . . . . Miscellaneous . | . . . . . . . . . . . . . . . . Route ------- -11/Scrapyard -10/Materials (discovered 5 exits: *Mat x3 / [*Min x2]) -10/Mines (discovered 2 exits: *Mat x2) -9/Materials (discovered 3 exits: *Mat x2 / *Min) -9/Mines (discovered 3 exits: *Mat x2 / *Exi) -9/Exiles -8/Mines -8/Materials (discovered 3 exits: *Fac x2 / Gar) -8/Garrison (discovered 3 exits: *Fac x3) -7/Factory (discovered 3 exits: *Fac / [*Low] / Gar) -7/Garrison (discovered 3 exits: *Fac x3) -7/Factory -7/Garrison (discovered 3 exits: *Fac x3) -6/Factory -6/Garrison (discovered 3 exits: *Fac x3) -6/Factory History --------- Turn | Location | Event 9 | -11/Scrapyard | Discovered new exit (range 14) 174 | -11/Scrapyard | Entered Materials 315 | -10/Materials | Build established: Mutant 537 | -10/Materials | Discovered new exit (range 6) 538 | -10/Materials | Discovered new exit (range 15) 743 | -10/Materials | Discovered new exit (range 10) 896 | -10/Materials | Discovered new exit (range 13) 1596 | -10/Materials | Discovered new exit (range 8) 1730 | -10/Materials | Entered Mines 1851 | -10/Mines | Learned location of Storage (-9) 1914 | -10/Mines | Assembled infested the area 1919 | -10/Mines | Assisted by a Guerilla fighting off Assembled 2278 | -10/Mines | Core integrity fell below 50% 2302 | -10/Mines | Lost 3 parts (1p1n1w) 2465 | -10/Mines | Found a hidden stash of uninstalled traps 2486 | -10/Mines | Identified exit to Materials 2564 | -10/Mines | Received a Mining Laser from a helpful Derelict 2683 | -10/Mines | Discovered exit to Materials (range 8) 2706 | -10/Mines | Entered Materials 2706 | -9/Materials | Accompanied by 1 ally 2706 | -9/Materials | Evolved 2 slots: Propulsion x1, Utility x1 3066 | -9/Materials | Build established: Scavenger-Mutant 3724 | -9/Materials | Discovered new exit (range 15) 4006 | -9/Materials | Discovered new exit (range 12) 4164 | -9/Materials | Discovered new exit (range 15) 4363 | -9/Materials | Entered Mines 4370 | -9/Mines | Received a Rocket Launcher from a helpful Derelict 4556 | -9/Mines | Found a damaged Exp. Sensor Array with a note attached 4560 | -9/Mines | Found Prototype Device 4609 | -9/Mines | Found DCF Scrap (10 items) 4710 | -9/Mines | Learned 8 Materials zone layouts 4769 | -9/Mines | Discovered new exit (range 8) 4815 | -9/Mines | Met a Derelict shopkeep closing up shop 5677 | -9/Mines | Discovered new exit (range 11) 5776 | -9/Mines | Deemed a non-threat by the Exiles lab entrance 5776 | -9/Mines | Discovered new exit (range 5) 5782 | -9/Mines | Entered Exiles 5826 | -9/Exiles | Met 8R-AWN 5845 | -9/Exiles | Met EX-HEX 5901 | -9/Exiles | Met EX-BIN 5931 | -9/Exiles | Aligned with FarCom system 5932 | -9/Exiles | Given EX-Vault access code 5971 | -9/Exiles | Opened EX-Vault 5994 | -9/Exiles | Found Field Lobotomy Kit 6027 | -9/Exiles | Warned to stay clear of 0b10 Research branches 6037 | -9/Exiles | Exiles lab attacked by MAIN.C 6130 | -9/Exiles | Discovered new exit (range 10) 6143 | -9/Exiles | Left Exiles lab with Field Lobotomy Kit 6143 | -9/Exiles | Entered Mines 6236 | -8/Mines | Discovered new exit (range 5) 6422 | -8/Mines | Entered Materials 6422 | -8/Materials | Evolved 2 slots: Propulsion x1, Weapon x1 6423 | -8/Materials | Identified exit to Factory 6716 | -8/Materials | Discovered exit to Factory (range 16) 7132 | -8/Materials | Build established: Skirmisher 7355 | -8/Materials | Garrison activated, responded to threat 7548 | -8/Materials | Build established: Scavenger-Skirmisher 7897 | -8/Materials | Identified exit to Garrison 7970 | -8/Materials | Entered Garrison 7984 | -8/Garrison | Triggered checkpoint 7990 | -8/Garrison | Triggered checkpoint 8060 | -8/Garrison | Triggered checkpoint 8218 | -8/Garrison | Garrison Relay disabled 8346 | -8/Garrison | Triggered checkpoint 8347 | -8/Garrison | Triggered checkpoint 8386 | -8/Garrison | Lost 5 allies 8444 | -8/Garrison | Triggered checkpoint 8600 | -8/Garrison | Discovered exit to Factory (range 11) 8777 | -8/Garrison | Discovered exit to Factory (range 12) 8840 | -8/Garrison | Triggered checkpoint 8855 | -8/Garrison | Garrison Relay disabled 9003 | -8/Garrison | Discovered exit to Factory (range 14) 9259 | -8/Garrison | Installed Relay Interface Framework 9616 | -8/Garrison | Triggered checkpoint 9702 | -8/Garrison | Garrison Relay disabled 9990 | -8/Garrison | Entered Factory 9990 | -7/Factory | Evolved 2 slots: Utility x2 10162 | -7/Factory | Build established: Bothacker-Mutant 10905 | -7/Factory | Build established: Bothacker-Skirmisher 11342 | -7/Factory | Build established: Bothacker-Mutant 11930 | -7/Factory | Build established: Bothacker-Skirmisher 13103 | -7/Factory | Discovered new exit (range 16) 13305 | -7/Factory | Discovered new exit (range 5) 14021 | -7/Factory | Build established: Bothacker-Mutant 14394 | -7/Factory | Identified exit to Garrison 14394 | -7/Factory | Entered Garrison 14572 | -7/Garrison | Garrison Relay disabled 14734 | -7/Garrison | Triggered checkpoint 14843 | -7/Garrison | Expanded RIF knowledge: Structural Interface 14870 | -7/Garrison | Discovered new exit (range 10) 14890 | -7/Garrison | Triggered checkpoint 14902 | -7/Garrison | Discovered new exit (range 6) 14902 | -7/Garrison | Discovered new exit (range 71) 14902 | -7/Garrison | Discovered new exit (range 49) 14954 | -7/Garrison | Triggered checkpoint 15243 | -7/Garrison | Build established: Bothacker-Skirmisher 15312 | -7/Garrison | Triggered checkpoint 15336 | -7/Garrison | Expanded RIF knowledge: Autooverride 15349 | -7/Garrison | Garrison Relay disabled 15385 | -7/Garrison | Entered Factory 16301 | -7/Factory | Repaired Imp. Treads? 16736 | -7/Factory | Garrison activated, responded to threat 17606 | -7/Factory | Fabricated Adv. Treads? 17801 | -7/Factory | Core integrity fell below 50% 18006 | -7/Factory | Identified exit to Garrison 18006 | -7/Factory | Entered Garrison 18137 | -7/Garrison | System corruption reached 10% 18223 | -7/Garrison | Garrison Relay disabled 18404 | -7/Garrison | Triggered checkpoint 18476 | -7/Garrison | Spotted B-75 Beast 18476 | -7/Garrison | Spotted B-75 Beast 18556 | -7/Garrison | Triggered checkpoint 18625 | -7/Garrison | Discovered new exit (range 3) 18791 | -7/Garrison | Garrison Relay disabled 19183 | -7/Garrison | Lost 6 allies 19457 | -7/Garrison | Build established: Bothacker-Mutant 19458 | -7/Garrison | Triggered checkpoint 19550 | -7/Garrison | Triggered checkpoint 19645 | -7/Garrison | Expanded RIF knowledge: Zone Cloak 19688 | -7/Garrison | Garrison Relay disabled 19768 | -7/Garrison | Discovered new exit (range 14) 19932 | -7/Garrison | Triggered checkpoint 20292 | -7/Garrison | Build established: Botlord-Tank 20368 | -7/Garrison | Triggered checkpoint 20384 | -7/Garrison | Triggered checkpoint 20462 | -7/Garrison | Triggered checkpoint 20542 | -7/Garrison | Found embedded Infiltrators 20710 | -7/Garrison | Triggered checkpoint 20817 | -7/Garrison | Lost 6 allies 20986 | -7/Garrison | Discovered new exit (range 12) 21108 | -7/Garrison | Lost 3 parts (1u2w) 21148 | -7/Garrison | Garrison Relay disabled 21294 | -7/Garrison | Entered Factory 21294 | -6/Factory | Evolved 2 slots: Utility x2 21791 | -6/Factory | Lost 5 parts (1n3u1w) 21890 | -6/Factory | Spotted B-75 Beast 21893 | -6/Factory | Assimilated H-61 Shepherd with FLK Orb 21896 | -6/Factory | Assimilated H-61 Shepherd with FLK Orb 21903 | -6/Factory | Assimilated B-75 Beast with FLK Orb 21906 | -6/Factory | Assimilated X-72 Disruptor with FLK Orb 22499 | -6/Factory | Garrison activated, responded to threat 22538 | -6/Factory | Lost 3 allies 22694 | -6/Factory | First assault squad dispatched 22900 | -6/Factory | Identified exit to Garrison 22900 | -6/Factory | Entered Garrison 23194 | -6/Garrison | Triggered checkpoint 23210 | -6/Garrison | System corruption reached 10% 23279 | -6/Garrison | Triggered checkpoint 23288 | -6/Garrison | Triggered checkpoint 23339 | -6/Garrison | Core integrity fell below 50% 23398 | -6/Garrison | Triggered checkpoint 23407 | -6/Garrison | Garrison Relay disabled 23549 | -6/Garrison | Lost 5 parts (2n2u1w) 23569 | -6/Garrison | Destroyed 8 combat bots 23598 | -6/Garrison | Garrison Relay disabled 23730 | -6/Garrison | Discovered new exit (range 15) 23799 | -6/Garrison | Build established: Botlord-Mutant 24134 | -6/Garrison | Discovered new exit (range 15) 24176 | -6/Garrison | Triggered checkpoint 24382 | -6/Garrison | Found Relay Coupler [Proto] 24388 | -6/Garrison | Found Relay Coupler [Proto] 24393 | -6/Garrison | Found Relay Coupler [Proto] 24399 | -6/Garrison | Found Relay Coupler [Proto] 24445 | -6/Garrison | Garrison Relay disabled 24475 | -6/Garrison | Build established: Botlord-Skirmisher 24825 | -6/Garrison | Discovered new exit (range 10) 25029 | -6/Garrison | Garrison Relay disabled 25056 | -6/Garrison | Garrison Relay disabled 25108 | -6/Garrison | Garrison Relay disabled 25196 | -6/Garrison | Triggered checkpoint 25826 | -6/Garrison | Triggered checkpoint 25891 | -6/Garrison | Expanded RIF knowledge: Signal Jamming 26603 | -6/Garrison | Entered Factory 26919 | -6/Factory | Fabricated Adv. Treads? 26953 | -6/Factory | First assault squad dispatched 27127 | -6/Factory | System corruption reached 30% 27143 | -6/Factory | Core integrity fell below 20% 27154 | -6/Factory | Destroyed by B-48 Gladiator with Mace Last Messages --------------- 27126_ Relay Coupler [Grunt] destroyed. 27126_ System corrupted by crushing effect (+4). 27132_ System Shield destroyed. 27132_ System corrupted by crushing effect (+2). 27134_ System corrupted: Energy discharge (-36). 27134_ Imp. Medium Treads destroyed. 27137_ M-28 Smith repairs B-48 Gladiator. 27137_ Critical hit (Smash). 27137_ Broken Hvy. Flak Cannon destroyed. 27137_ System corrupted by crushing effect (+1). 27144_ R-10 Processor collects Unknown Energy Gun. 27146_ M-28 Smith destroyed. 27148_ R-10 Processor collects Wheel. 27150_ Slammed into B-48 Gladiator. 27150_ Destabilizing: Core damaged (-42). 27151_ R-10 Processor collects Unknown Engine. 27152_ K5ZE1I2W4UE6C7UP,S85V HHSI& 27153_ K-01 Serf collects debris. Map ----- +----------------------------------------------------+ | ????????????????????????????? | | ????????????????????????????? | | ????????????????????????????? | | ????????????????????????????? | | ????????????????????????????? | | ????????????????????????????? | | ????????????????????????????? | | ????????????????????????????? | | ????????????????????????????? | | ????????????????????????????? | | ????????????????????????????? | | ????????????????????????????? | | ????????????????????????????? | | ?##########?????????????????? | | ?# #?????????????????? | | ?# """"#?????????????????? | | ?# """"#?????????????????? | | ?# """"#?????????????????? | | ?# """"#?????????????????? | | ?# [ """"#?????????????????? | | ?# """"#?????????????????? | | ?# """"#?????????????????? | | ?# #?????????????????? | | ?# """"#????????? ??????? | | ?# b """"#????????? ??????? | | ?# @ """"#?????????= ??????? | | ?# % """"#????????# "?????? | | ?# """"#????????# "?? ? | | ?# gR""""#????????# ?? | | ?# % %"#????????# """ | | ?# % #????????# """ | | ?# ####+##### """ | | ?######k#+## ^ | | ??????# | | ??????# | | ??????# ] | | ??????### ="" | | ????????# #### F" | | ????????# #??# """ =" = | | ??#######+#### """ "" | | # # """ | | # ] # ### | | # """"""" # """ """ #?? | | ? """"""" # """ """ #?? | | ??""""""" # """ """ #?? | | # """"""" + #?? | | # # #?? | | ? """"""" ! # #?? | | ???"""""" ##### #?? | | ???"""""" #???# #?? | +----------------------------------------------------+ Best States ------------- Heat Dissipation 56 Energy Generation 16 Energy Capacity 290 Matter Stores 365 Matter Capacity 500 Sight Range 16 Terrain Scan Range 16 Terrain Scan Density 10 Jamming Range 12 Armor Coverage 375 Core Shielding 20 Utility Shielding 33 Evasion (%) 40 Recoil Reduction 4 Offensive Hacking 10 Defensive Hacking 10 Relay Coupler Types 3 Relay Coupler Value 93 Item Schematics ----------------- Rocket Launcher | -7/Factory | Scanalyzed Adv. Treads | -7/Factory | Scanalyzed Robot Schematics ------------------ None Fabricated ------------ Adv. Treads | x2 | -7/Factory Adv. Treads | x2 | -6/Factory Repaired ---------- Imp. Treads | 16% | -7/Factory Alien Tech Used ----------------- None Achievements -------------- Infiltrator Packrat Tank Challenges ------------ None Game ------ Seed SensorTrapCharger Manual? 0 Play Time 02:54:55 Cumulative 35.2 hours Start 2025.06.19 @ 20:37:11 End 2025.06.20 @ 21:34:29 Sessions 3 Manual Loads 0 Difficulty Rogue Special Mode None Game No. 33 Rogue 33 Adventurer 0 Explorer 0 Win Type - Total 0 Types 0/0/0/0/0/0/0/0/0/0 Lore% 24 Gallery% 27 Achievement% 30 Wizard Run 0 Options --------- Layout 1 ASCII 0 Keyboard 1 Movement Arrows Keybinds 0 Fullscreen 1 Font 24/Smallcaps Map View 50x40 Zoom Use 0% Tactical HUD 1 Map Filters NONE Filters NONE Steam 1 RUN: 58702ef1-2a1e-4582-80d5-bace5c9fca9d